fUST/lending_fUST_20250806
["ID","MTS","AMOUNT","RATE_DAILY","PERIOD"]
[377435927,1754412529804,-361.83250672,0.0002599,2]
[377435928,1754412533204,-213.95841193,0.0002599,2]
[377435931,1754412535968,-363.54844271,0.0002599,2]
[377435932,1754412540421,-439.6578109,0.0002599,2]
[377435933,1754412543054,-265.36159108,0.0002599,2]
[377435934,1754412545592,-154.745903,0.0002599,2]
[377435935,1754412550403,-160.0,0.0002599,2]
[377435936,1754412552481,-236.92105253,0.0002599,2]
[377435937,1754412556368,-330.21772062,0.0002599,2]
[377435953,1754412564168,-304.07304996,0.0002599,2]
[377435954,1754412566858,-300.0,0.0002599,2]
[377435955,1754412569656,-286.83187948,0.0002599,2]
[377435956,1754412571199,-296.14940659,0.0002599,2]
[377435957,1754412573363,-195.14059369,0.0002599,2]
[377435958,1754412577678,-154.67702901,0.0002599,2]
[377435959,1754412579519,-165.33392695,0.0002599,2]
[377435960,1754412581505,-198.31669987,0.0002599,2]
[377435961,1754412584092,-179.483699,0.0002599,2]
[377435962,1754412585612,-248.15985857,0.0002599,2]
[377435964,1754412588384,-30.09998119,0.0002599,2]
[377435965,1754412598149,189.53061803,0.0003,120]
[377436015,1754412632364,-189.35763739,0.00026472,2]
[377436017,1754412632374,-1005.28925931,0.00026487,2]
[377436019,1754412632384,-300.0,0.00026572,2]
[377436021,1754412632395,-255.0,0.00026572,2]
[377436024,1754412632405,-467.00522385,0.00026572,2]
[377436030,1754412632470,-732.99477615,0.00026572,2]
[377436031,1754412632479,-217.0,0.00026572,2]
[377436032,1754412632488,-502.28552133,0.00026573,2]
[377436033,1754412632498,-500.0,0.00026573,2]
[377436035,1754412632507,-500.0,0.00026573,2]
[377436037,1754412632516,-500.0,0.00026573,2]
[377436038,1754412632526,-500.0,0.00026573,2]
[377436039,1754412632535,-663.82,0.00026577,10]
[377436040,1754412632544,-370.76642582,0.00026586,2]
[377436041,1754412632553,-500.0,0.00026587,2]
[377436042,1754412632562,-174.03322192,0.00026587,2]
[377436043,1754412632571,-286.59,0.00026587,3]
[377436044,1754412632580,-859.79,0.00026587,3]
[377436045,1754412632590,-1200.0,0.00026587,2]
[377436046,1754412632599,-508.58,0.00026587,3]
[377436047,1754412632608,-1963.18071763,0.00026587,2]
[377436164,1754412638164,-820.20000026,0.00026587,2]
[377436165,1754412638219,-32703.35024351,0.00026587,2]
[377436166,1754412638228,-206641.045044,0.00026588,2]
[377436167,1754412638238,-1926.87270775,0.00026588,2]
[377436168,1754412638248,-495.00652271,0.00026591,2]
[377436169,1754412638258,-151.0,0.00026591,2]
[377436170,1754412638267,-160.0,0.00026595,2]
[377436171,1754412638284,-175.408,0.00026596,13]
[377436172,1754412638297,-82656.4180175,0.00026597,2]
[377436173,1754412638306,-3082.9963324,0.00026597,2]
[377436174,1754412638316,-500.0,0.00026598,2]
[377436175,1754412638325,-370000.0,0.00026607,2]
[377436176,1754412638335,-500.0,0.00026673,2]
[377436177,1754412638348,-500.0,0.00026673,2]
[377436178,1754412638358,-500.0,0.00026673,2]
[377436179,1754412638367,-500.0,0.00026673,2]
[377436180,1754412638377,-500.0,0.00026673,2]
[377436181,1754412638388,-500.0,0.00026673,2]
[377436182,1754412638398,-216.189365,0.00026676,2]
[377436183,1754412638407,-1005.28925927,0.00026827,2]
[377436184,1754412638418,-500.0,0.00026835,2]
[377436185,1754412638428,-356.0,0.00026868,2]
[377436186,1754412638437,-608.42156628,0.00026872,2]
[377436187,1754412638446,-385.37454155,0.0002698,2]
[377436188,1754412638456,-366.0,0.00027,7]
[377436189,1754412638465,-377.43,0.00027044,2]
[377436190,1754412638474,-500.0,0.00027109,3]
[377436191,1754412638484,-500.0,0.00027121,2]
[377436192,1754412638494,-1005.28925927,0.00027166,2]
[377436193,1754412638504,-377.0,0.00027169,2]
[377436194,1754412638514,-1000.0,0.00027221,2]
[377436195,1754412638524,-1000.0,0.00027221,2]
[377436196,1754412638537,-900.0,0.00027272,2]
[377436197,1754412638546,-493.58569009,0.00027383,4]
[377436198,1754412638557,-770.7490831,0.00027387,2]
[377436199,1754412638566,-460.0,0.00027397,2]
[377436200,1754412638576,-460.0,0.00027397,2]
[377436201,1754412638587,-460.0,0.00027397,2]
[377436202,1754412638598,-460.0,0.00027397,2]
[377436203,1754412638613,-460.0,0.00027397,2]
[377436204,1754412638627,-460.0,0.00027397,2]
[377436205,1754412638644,-460.0,0.00027397,2]
[377436206,1754412638663,-460.0,0.00027397,2]
[377436207,1754412638683,-460.0,0.00027397,2]
[377436208,1754412638698,-460.0,0.00027397,2]
[377436209,1754412638708,-574.68,0.00027397,2]
[377436210,1754412638718,-460.0,0.00027397,2]
[377436211,1754412638728,-460.0,0.00027397,2]
[377436212,1754412638738,-460.0,0.00027397,2]
[377436213,1754412638747,-660.38,0.00027397,2]
[377436214,1754412638756,-460.0,0.00027397,2]
[377436215,1754412638766,-460.0,0.00027397,2]
[377436216,1754412638777,-460.0,0.00027397,2]
[377436217,1754412638792,-460.0,0.00027397,2]
[377436218,1754412638808,-460.09256813,0.00027397,2]
[377436219,1754412638822,-460.0,0.00027397,2]
[377436220,1754412638834,-460.0,0.00027397,2]
[377436221,1754412638847,-460.0,0.00027397,2]
[377436222,1754412638858,-460.0,0.00027397,2]
[377436223,1754412638869,-460.0,0.00027397,2]
[377436224,1754412638880,-460.0,0.00027397,2]
[377436225,1754412638893,-782.92,0.00027397,2]
[377436226,1754412638906,-460.0,0.00027397,2]
[377436227,1754412638917,-509.16,0.00027397,2]
[377436228,1754412638929,-460.0,0.00027397,2]
[377436229,1754412638945,-460.0,0.00027397,2]
[377436230,1754412638957,-180.77539851,0.00027397,2]
[377436231,1754412638969,-1310.67,0.00027397,2]
[377436232,1754412638981,-1559.45,0.00027397,2]
[377436233,1754412638993,-460.0,0.00027397,2]
[377436234,1754412639006,-460.0,0.00027397,2]
[377436235,1754412639017,-460.0,0.00027397,2]
[377436236,1754412639029,-460.0,0.00027397,2]
[377436237,1754412639040,-460.0,0.00027397,2]
[377436238,1754412639050,-460.0,0.00027397,2]
[377436239,1754412639061,-460.0,0.00027397,2]
[377436240,1754412639072,-460.0,0.00027397,2]
[377436241,1754412639084,-460.0,0.00027397,2]
[377436242,1754412639096,-365.6701697,0.00027397,2]
[377436243,1754412639107,-460.0,0.00027397,2]
[377436244,1754412639119,-460.0,0.00027397,2]
[377436245,1754412639130,-1184.71,0.00027397,2]
[377436246,1754412639142,-460.0,0.00027397,2]
[377436247,1754412639153,-526.12901827,0.00027397,2]
[377436248,1754412639164,-495.18,0.00027397,2]
[377436249,1754412639176,-1269.99,0.00027397,2]
[377436250,1754412639187,-198.45109726,0.00027397,2]
[377436251,1754412639200,-500.0,0.00027397,2]
[377436252,1754412639211,-460.0,0.00027397,2]
[377436253,1754412639223,-598.42,0.00027397,2]
[377436254,1754412639233,-460.0,0.00027397,2]
[377436255,1754412639245,-46508.86,0.00027397,2]
[377436256,1754412639259,-460.0,0.00027397,2]
[377436257,1754412639270,-464.97,0.00027397,2]
[377436259,1754412639283,-460.0,0.00027397,2]
[377436261,1754412639296,-460.0,0.00027397,2]
[377436263,1754412639308,-460.0,0.00027397,2]
[377436266,1754412639320,-780.09,0.00027397,2]
[377436268,1754412639331,-460.0,0.00027397,2]
[377436270,1754412639343,-460.0,0.00027397,2]
[377436273,1754412639358,-460.0,0.00027397,2]
[377436275,1754412639369,-460.0,0.00027397,2]
[377436277,1754412639384,-460.0,0.00027397,2]
[377436280,1754412639397,-460.0,0.00027397,2]
[377436282,1754412639409,-460.0,0.00027397,2]
[377436284,1754412639422,-460.0,0.00027397,2]
[377436287,1754412639436,-460.0,0.00027397,2]
[377436289,1754412639447,-460.0,0.00027397,2]
[377436291,1754412639459,-460.0,0.00027397,2]
[377436293,1754412639470,-460.0,0.00027397,2]
[377436296,1754412639482,-460.0,0.00027397,2]
[377436298,1754412639492,-1164.78,0.00027397,2]
[377436300,1754412639502,-500.0,0.00027397,2]
[377436302,1754412639513,-162.42166547,0.00027397,2]
[377436304,1754412639523,-365.41536188,0.00027397,2]
[377436306,1754412639535,-525.71769394,0.00027397,2]
[377436309,1754412639547,-360.46306678,0.00027397,2]
[377436311,1754412639559,-231.06983737,0.00027397,2]
[377436313,1754412639571,-460.0,0.00027397,2]
[377436315,1754412639581,-460.0,0.00027397,2]
[377436318,1754412639592,-460.0,0.00027397,2]
[377436320,1754412639603,-460.0,0.00027397,2]
[377436322,1754412639613,-460.0,0.00027397,2]
[377436324,1754412639624,-768.57,0.00027397,2]
[377436325,1754412639635,-460.0,0.00027397,2]
[377436326,1754412639646,-460.0,0.00027397,2]
[377436327,1754412639658,-460.0,0.00027397,2]
[377436328,1754412639669,-460.0,0.00027397,2]
[377436329,1754412639680,-460.0,0.00027397,2]
[377436330,1754412639691,-500.0,0.00027397,2]
[377436332,1754412639701,-500.0,0.00027397,2]
[377436333,1754412639713,-460.0,0.00027397,2]
[377436334,1754412639723,-500.0,0.00027397,2]
[377436335,1754412639734,-500.0,0.00027397,2]
[377436336,1754412639744,-500.0,0.00027397,2]
[377436337,1754412639756,-500.0,0.00027397,2]
[377436338,1754412639766,-330.34,0.00027397,2]
[377436339,1754412639778,-460.0,0.00027397,2]
[377436340,1754412639789,-500.0,0.00027397,5]
[377436341,1754412639801,-460.0,0.00027397,2]
[377436342,1754412639812,-460.0,0.00027397,2]
[377436343,1754412639824,-603.88,0.00027397,2]
[377436344,1754412639838,-460.0,0.00027397,2]
[377436345,1754412639849,-460.0,0.00027397,2]
[377436346,1754412639860,-460.0,0.00027397,2]
[377436347,1754412639871,-460.0,0.00027397,2]
[377436348,1754412639881,-460.0,0.00027397,2]
[377436349,1754412639892,-460.0,0.00027397,2]
[377436350,1754412639903,-460.0,0.00027397,2]
[377436351,1754412639913,-460.0,0.00027397,2]
[377436352,1754412639924,-460.0,0.00027397,2]
[377436353,1754412639934,-460.0,0.00027397,2]
[377436354,1754412639945,-460.0,0.00027397,2]
[377436355,1754412639956,-460.0,0.00027397,2]
[377436356,1754412639967,-460.0,0.00027397,2]
[377436357,1754412639978,-460.0,0.00027397,2]
[377436358,1754412639989,-460.0,0.00027397,2]
[377436359,1754412640000,-460.0,0.00027397,2]
[377436360,1754412640011,-460.0,0.00027397,2]
[377436361,1754412640021,-460.0,0.00027397,2]
[377436362,1754412640032,-460.0,0.00027397,2]
[377436363,1754412640042,-460.0,0.00027397,2]
[377436364,1754412640055,-495.61168537,0.00027397,2]
[377436365,1754412640065,-500.0,0.00027397,2]
[377436366,1754412640076,-460.0,0.00027397,2]
[377436367,1754412640087,-460.0,0.00027397,2]
[377436368,1754412640097,-460.0,0.00027397,2]
[377436369,1754412640108,-576.54,0.00027397,2]
[377436370,1754412640119,-460.0,0.00027397,2]
[377436371,1754412640131,-460.0,0.00027397,2]
[377436372,1754412640141,-460.0,0.00027397,2]
[377436373,1754412640152,-460.0,0.00027397,2]
[377436374,1754412640163,-460.0,0.00027397,2]
[377436375,1754412640173,-958.29,0.00027397,2]
[377436376,1754412640184,-673.03,0.00027397,2]
[377436377,1754412640195,-460.0,0.00027397,2]
[377436378,1754412640205,-495.79985782,0.00027397,2]
[377436379,1754412640216,-460.0,0.00027397,2]
[377436380,1754412640227,-2420.56,0.00027397,2]
[377436381,1754412640238,-460.0,0.00027397,2]
[377436382,1754412640263,-390.01451799,0.00027397,2]
[377436383,1754412640276,-710.61,0.00027397,2]
[377436384,1754412640290,-1005.28925927,0.00027506,2]
[377436385,1754412640303,-770.7490831,0.00027661,2]
[377436386,1754412640315,-460.0,0.00027671,2]
[377436387,1754412640327,-460.0,0.00027671,2]
[377436388,1754412640340,-460.0,0.00027671,2]
[377436389,1754412640354,-460.0,0.00027671,2]
[377436390,1754412640366,-574.68,0.00027671,2]
[377436391,1754412640378,-460.0,0.00027671,2]
[377436392,1754412640391,-660.38,0.00027671,2]
[377436393,1754412640403,-460.0,0.00027671,2]
[377436394,1754412640415,-460.0,0.00027671,2]
[377436395,1754412640428,-460.0,0.00027671,2]
[377436396,1754412640440,-460.0,0.00027671,2]
[377436397,1754412640451,-782.92,0.00027671,2]
[377436398,1754412640462,-509.16,0.00027671,2]
[377436399,1754412640474,-1310.67,0.00027671,2]
[377436400,1754412640485,-1559.45,0.00027671,2]
[377436401,1754412640497,-460.0,0.00027671,2]
[377436402,1754412640508,-460.0,0.00027671,2]
[377436403,1754412640519,-460.0,0.00027671,2]
[377436404,1754412640531,-460.0,0.00027671,2]
[377436405,1754412640542,-460.0,0.00027671,2]
[377436406,1754412640554,-460.0,0.00027671,2]
[377436407,1754412640564,-1184.71,0.00027671,2]
[377436408,1754412640577,-495.18,0.00027671,2]
[377436409,1754412640588,-1269.99,0.00027671,2]
[377436410,1754412640597,-460.0,0.00027671,2]
[377436418,1754412640783,-598.42,0.00027671,2]
[377436419,1754412640803,-460.0,0.00027671,2]
[377436420,1754412640814,-46508.86,0.00027671,2]
[377436421,1754412640823,-464.97,0.00027671,2]
[377436422,1754412640832,-460.0,0.00027671,2]
[377436423,1754412640841,-460.0,0.00027671,2]
[377436424,1754412640850,-780.09,0.00027671,2]
[377436425,1754412640859,-460.0,0.00027671,2]
[377436426,1754412640869,-460.0,0.00027671,2]
[377436427,1754412640878,-460.0,0.00027671,2]
[377436428,1754412640887,-429.62078725,0.00027671,2]
[377436429,1754412640896,-460.0,0.00027671,2]
[377436430,1754412640904,-460.0,0.00027671,2]
[377436431,1754412640913,-460.0,0.00027671,2]
[377436432,1754412640922,-1164.78,0.00027671,2]
[377436433,1754412640931,-500.0,0.00027671,2]
[377436434,1754412640940,-460.0,0.00027671,2]
[377436435,1754412640949,-768.57,0.00027671,2]
[377436436,1754412640958,-460.0,0.00027671,2]
[377436437,1754412640967,-460.0,0.00027671,2]
[377436438,1754412640976,-460.0,0.00027671,2]
[377436439,1754412640985,-460.0,0.00027671,2]
[377436440,1754412640994,-460.0,0.00027671,2]
[377436441,1754412641003,-603.88,0.00027671,2]
[377436442,1754412641012,-460.0,0.00027671,2]
[377436443,1754412641021,-460.0,0.00027671,2]
[377436444,1754412641030,-460.0,0.00027671,2]
[377436445,1754412641039,-460.0,0.00027671,2]
[377436446,1754412641047,-460.0,0.00027671,2]
[377436448,1754412641056,-460.0,0.00027671,2]
[377436450,1754412641065,-460.0,0.00027671,2]
[377436452,1754412641075,-460.0,0.00027671,2]
[377436454,1754412641085,-460.0,0.00027671,2]
[377436456,1754412641094,-460.0,0.00027671,2]
[377436458,1754412641103,-460.0,0.00027671,2]
[377436460,1754412641113,-460.0,0.00027671,2]
[377436462,1754412641121,-460.0,0.00027671,2]
[377436464,1754412641130,-576.54,0.00027671,2]
[377436466,1754412641139,-460.0,0.00027671,2]
[377436467,1754412641151,-460.0,0.00027671,2]
[377436470,1754412641161,-460.0,0.00027671,2]
[377436471,1754412641171,-460.0,0.00027671,2]
[377436473,1754412641180,-958.29,0.00027671,2]
[377436476,1754412641190,-673.03,0.00027671,2]
[377436478,1754412641201,-460.0,0.00027671,2]
[377436480,1754412641210,-474.81770387,0.00027671,2]
[377436482,1754412641219,-2420.56,0.00027671,2]
[377436484,1754412641228,-710.61,0.00027671,2]
[377436486,1754412641241,-366.0,0.00027671,14]
[377436488,1754412641252,-150.0,0.00027673,3]
[377436490,1754412641261,-500.0,0.00027673,5]
[377436492,1754412641271,-153.63,0.00027706,15]
[377436494,1754412641282,-153.63,0.00027708,15]
[377436496,1754412641291,-153.35,0.00027724,15]
[377436498,1754412641301,-1000.0,0.00027768,5]
[377436500,1754412641311,-1500.0,0.00027768,5]
[377436502,1754412641322,-153.63,0.00027806,15]
[377436504,1754412641332,-153.63,0.00027808,15]
[377436506,1754412641350,-153.35,0.00027824,15]
[377436508,1754412641360,-1005.28925927,0.00027845,2]
[377436510,1754412641370,-160.0,0.00027848,2]
[377436512,1754412641379,-231.72586818,0.00027885,2]
[377436514,1754412641388,-160.0,0.00027885,2]
[377436516,1754412641399,-160.0,0.00027887,2]
[377436518,1754412641408,-160.0,0.00027887,2]
[377436520,1754412641417,-215.21874788,0.00027887,2]
[377436522,1754412641428,-216.4206905,0.00027887,2]
[377436524,1754412641437,-160.0,0.00027887,2]
[377436526,1754412641447,-12655.02535889,0.00027887,2]
[377436528,1754412641457,-461.15695721,0.00027887,2]
[377436531,1754412641468,-160.0,0.00027887,2]
[377436533,1754412641477,-160.0,0.00027887,2]
[377436535,1754412641489,-842.25606042,0.0002789,2]
[377436537,1754412641499,-153.63,0.00027906,15]
[377436539,1754412641508,-153.63,0.00027908,15]
[377436541,1754412641517,-153.35,0.00027924,15]
[377436543,1754412641527,-770.7490831,0.00027935,2]
[377436545,1754412641536,-460.0,0.00027945,2]
[377436547,1754412641546,-460.0,0.00027945,2]
[377436549,1754412641555,-460.0,0.00027945,2]
[377436551,1754412641564,-460.0,0.00027945,2]
[377436553,1754412641573,-574.68,0.00027945,2]
[377436555,1754412641583,-460.0,0.00027945,2]
[377436557,1754412641593,-660.38,0.00027945,2]
[377436559,1754412641603,-435.36535,0.00027945,2]
[377436561,1754412641612,-460.0,0.00027945,2]
[377436563,1754412641622,-460.0,0.00027945,2]
[377436565,1754412641631,-460.0,0.00027945,2]
[377436567,1754412641642,-782.92,0.00027945,2]
[377436569,1754412641651,-509.16,0.00027945,2]
[377436571,1754412641660,-1310.67,0.00027945,2]
[377436573,1754412641670,-1559.45,0.00027945,2]
[377436575,1754412641679,-460.0,0.00027945,2]
[377436577,1754412641690,-460.0,0.00027945,2]
[377436579,1754412641699,-460.0,0.00027945,2]
[377436582,1754412641709,-460.0,0.00027945,2]
[377436584,1754412641719,-459.62630756,0.00027945,2]
[377436586,1754412641728,-1184.71,0.00027945,2]
[377436588,1754412641737,-495.18,0.00027945,2]
[377436590,1754412641746,-1269.99,0.00027945,2]
[377436592,1754412641755,-598.42,0.00027945,2]
[377436594,1754412641764,-460.0,0.00027945,2]
[377436596,1754412641773,-46508.86,0.00027945,2]
[377436598,1754412641789,-464.97,0.00027945,2]
[377436600,1754412641799,-460.0,0.00027945,2]
[377436602,1754412641809,-780.09,0.00027945,2]
[377436604,1754412641818,-460.0,0.00027945,2]
[377436606,1754412641828,-460.0,0.00027945,2]
[377436608,1754412641838,-460.0,0.00027945,2]
[377436610,1754412641847,-460.0,0.00027945,2]
[377436612,1754412641856,-460.0,0.00027945,2]
[377436614,1754412641865,-460.0,0.00027945,2]
[377436616,1754412641874,-460.0,0.00027945,2]
[377436618,1754412641883,-1164.78,0.00027945,2]
[377436620,1754412641893,-500.0,0.00027945,2]
[377436623,1754412641902,-460.0,0.00027945,2]
[377436624,1754412641911,-768.57,0.00027945,2]
[377436627,1754412641921,-460.0,0.00027945,2]
[377436629,1754412641930,-460.0,0.00027945,2]
[377436631,1754412641939,-460.0,0.00027945,2]
[377436633,1754412641948,-460.0,0.00027945,2]
[377436635,1754412641957,-603.88,0.00027945,2]
[377436637,1754412641966,-460.0,0.00027945,2]
[377436639,1754412641975,-460.0,0.00027945,2]
[377436641,1754412641985,-460.0,0.00027945,2]
[377436643,1754412641996,-460.0,0.00027945,2]
[377436645,1754412642005,-460.0,0.00027945,2]
[377436647,1754412642015,-460.0,0.00027945,2]
[377436649,1754412642024,-460.0,0.00027945,2]
[377436651,1754412642035,-460.0,0.00027945,2]
[377436653,1754412642044,-460.0,0.00027945,2]
[377436655,1754412642054,-460.0,0.00027945,2]
[377436657,1754412642063,-576.54,0.00027945,2]
[377436659,1754412642074,-460.0,0.00027945,2]
[377436661,1754412642083,-460.0,0.00027945,2]
[377436663,1754412642092,-460.0,0.00027945,2]
[377436666,1754412642102,-460.0,0.00027945,2]
[377436668,1754412642112,-673.03,0.00027945,2]
[377436670,1754412642122,-958.29,0.00027945,2]
[377436672,1754412642132,-460.0,0.00027945,2]
[377436674,1754412642141,-2420.56,0.00027945,2]
[377436676,1754412642151,-710.61,0.00027945,2]
[377436678,1754412642161,-573.18,0.00027957,3]
[377436680,1754412642172,-371.70457955,0.00027962,2]
[377436682,1754412642182,-559.99666599,0.00027974,2]
[377436684,1754412642191,-153.63,0.00028006,15]
[377436686,1754412642200,-153.63,0.00028008,15]
[377436688,1754412642210,-153.35,0.00028024,15]
[377436690,1754412642219,-153.65,0.00028106,15]
[377436692,1754412642228,-153.65,0.00028108,15]
[377436694,1754412642238,-460.0,0.00028219,2]
[377436696,1754412642247,-165.77355586,0.00028219,2]
[377436698,1754412642257,-460.0,0.00028219,2]
[377436700,1754412642267,-460.0,0.00028219,2]
[377436702,1754412642276,-574.68,0.00028219,2]
[377436704,1754412642286,-460.0,0.00028219,2]
[377436706,1754412642296,-660.38,0.00028219,2]
[377436708,1754412642305,-460.0,0.00028219,2]
[377436710,1754412642315,-460.0,0.00028219,2]
[377436712,1754412642324,-460.0,0.00028219,2]
[377436714,1754412642333,-782.92,0.00028219,2]
[377436716,1754412642345,-509.16,0.00028219,2]
[377436718,1754412642357,-1310.67,0.00028219,2]
[377436720,1754412642366,-1559.45,0.00028219,2]
[377436722,1754412642376,-460.0,0.00028219,2]
[377436724,1754412642386,-460.0,0.00028219,2]
[377436726,1754412642398,-264.85102485,0.00028219,2]
[377436728,1754412642408,-460.0,0.00028219,2]
[377436731,1754412642419,-1184.71,0.00028219,2]
[377436733,1754412642431,-495.18,0.00028219,2]
[377436735,1754412642442,-1269.99,0.00028219,2]
[377436737,1754412642451,-598.42,0.00028219,2]
[377436739,1754412642461,-460.0,0.00028219,2]
[377436741,1754412642471,-46508.86,0.00028219,2]
[377436743,1754412642480,-464.97,0.00028219,2]
[377436745,1754412642489,-460.0,0.00028219,2]
[377436747,1754412642499,-780.09,0.00028219,2]
[377436749,1754412642508,-460.0,0.00028219,2]
[377436751,1754412642518,-460.0,0.00028219,2]
[377436753,1754412642527,-460.0,0.00028219,2]
[377436755,1754412642537,-460.0,0.00028219,2]
[377436757,1754412642546,-460.0,0.00028219,2]
[377436759,1754412642555,-460.0,0.00028219,2]
[377436760,1754412642565,-460.0,0.00028219,2]
[377436762,1754412642574,-1164.78,0.00028219,2]
[377436763,1754412642583,-500.0,0.00028219,2]
[377436765,1754412642593,-588.25,0.00028219,2]
[377436766,1754412642602,-768.57,0.00028219,2]
[377436768,1754412642611,-460.0,0.00028219,2]
[377436769,1754412642622,-460.0,0.00028219,2]
[377436773,1754412642631,-460.0,0.00028219,2]
[377436775,1754412642641,-460.0,0.00028219,2]
[377436776,1754412642650,-603.88,0.00028219,2]
[377436778,1754412642659,-460.0,0.00028219,2]
[377436779,1754412642668,-460.0,0.00028219,2]
[377436780,1754412642678,-460.0,0.00028219,2]
[377436782,1754412642687,-460.0,0.00028219,2]
[377436785,1754412642698,-460.0,0.00028219,2]
[377436786,1754412642707,-460.0,0.00028219,2]
[377436787,1754412642716,-460.0,0.00028219,2]
[377436789,1754412642725,-460.0,0.00028219,2]
[377436790,1754412642735,-460.0,0.00028219,2]
[377436793,1754412642744,-576.54,0.00028219,2]
[377436794,1754412642753,-460.0,0.00028219,2]
[377436796,1754412642762,-460.0,0.00028219,2]
[377436798,1754412642771,-460.0,0.00028219,2]
[377436799,1754412642782,-673.03,0.00028219,2]
[377436801,1754412642792,-958.29,0.00028219,2]
[377436802,1754412642801,-466.73,0.00028219,2]
[377436804,1754412642810,-2420.56,0.00028219,2]
[377436806,1754412642820,-710.61,0.00028219,2]
[377436807,1754412642829,-200.0,0.00028273,5]
[377436809,1754412642838,-900.0,0.00028368,7]
[377436810,1754412642847,-260.0,0.00028396,2]
[377436812,1754412642856,-696.4595939,0.00028399,2]
[377436814,1754412642865,-546.37,0.00028493,2]
[377436815,1754412642874,-460.0,0.00028493,2]
[377436816,1754412642883,-460.0,0.00028493,2]
[377436818,1754412642892,-574.68,0.00028493,2]
[377436819,1754412642901,-460.0,0.00028493,2]
[377436821,1754412642910,-660.38,0.00028493,2]
[377436823,1754412642919,-460.0,0.00028493,2]
[377436824,1754412642929,-460.0,0.00028493,2]
[377436826,1754412642938,-460.0,0.00028493,2]
[377436828,1754412642947,-782.92,0.00028493,2]
[377436829,1754412642956,-509.16,0.00028493,2]
[377436831,1754412642965,-1310.67,0.00028493,2]
[377436832,1754412642974,-1559.45,0.00028493,2]
[377436834,1754412642984,-460.0,0.00028493,2]
[377436836,1754412642993,-460.0,0.00028493,2]
[377436837,1754412643003,-460.0,0.00028493,2]
[377436839,1754412643012,-1184.71,0.00028493,2]
[377436840,1754412643021,-495.18,0.00028493,2]
[377436842,1754412643030,-1269.99,0.00028493,2]
[377436843,1754412643040,-598.42,0.00028493,2]
[377436845,1754412643049,-460.0,0.00028493,2]
[377436847,1754412643058,-46508.86,0.00028493,2]
[377436848,1754412643068,-464.97,0.00028493,2]
[377436850,1754412643077,-780.09,0.00028493,2]
[377436852,1754412643086,-460.0,0.00028493,2]
[377436853,1754412643095,-460.0,0.00028493,2]
[377436855,1754412643105,-460.0,0.00028493,2]
[377436856,1754412643113,-460.0,0.00028493,2]
[377436858,1754412643123,-460.0,0.00028493,2]
[377436860,1754412643132,-460.0,0.00028493,2]
[377436862,1754412643141,-460.0,0.00028493,2]
[377436865,1754412643150,-460.0,0.00028493,2]
[377436867,1754412643159,-1164.78,0.00028493,2]
[377436870,1754412643170,-500.0,0.00028493,2]